[Event "Titled Tuesday Blitz August 17 2021"]
[White "Oganisian, Roman"]
[Black "Drygalov, Sergey"]
[WhiteFideId "4153006"]
[BlackFideId "24171743"]
[WhiteElo "2204"]
[BlackElo "2514"]
[Result "0-1"]
[Round "02"]
[TimeControl "180+1"]
[Date "2021.08.17"]
[WhiteClock "0:00:17"]
[BlackClock "0:00:44"]

1. e4 {[%clk 0:03:00]}  c5 {[%clk 0:02:44]} 2. Nc3 {[%clk 0:02:59]}  e6 {[%clk 0:02:44]} 3. g4 {[%clk 0:02:59]}  d5 {[%clk 0:02:41]} 4. Bg2 {[%clk 0:02:58]}  d4 {[%clk 0:02:35]} 5. Nce2 {[%clk 0:02:57]}  Nc6 {[%clk 0:02:34]} 6. Ng3 {[%clk 0:02:53]}  Bd6 {[%clk 0:02:27]} 7. d3 {[%clk 0:02:50]}  Qc7 {[%clk 0:02:27]} 8. N1e2 {[%clk 0:02:47]}  Bd7 {[%clk 0:01:39]} 9. f4 {[%clk 0:02:42]}  O-O-O {[%clk 0:01:38]} 10. e5 {[%clk 0:02:41]}  Be7 {[%clk 0:01:38]} 11. O-O {[%clk 0:02:35]}  f6 {[%clk 0:01:38]} 12. Ne4 {[%clk 0:02:10]}  fxe5 {[%clk 0:01:34]} 13. fxe5 {[%clk 0:02:10]}  Nxe5 {[%clk 0:01:35]} 14. Bf4 {[%clk 0:02:10]}  Nf6 {[%clk 0:01:33]} 15. N2g3 {[%clk 0:01:48]}  Nd5 {[%clk 0:01:27]} 16. c3 {[%clk 0:01:01]}  dxc3 {[%clk 0:01:19]} 17. bxc3 {[%clk 0:00:53]}  Nxf4 {[%clk 0:01:18]} 18. Rxf4 {[%clk 0:00:53]}  Rhf8 {[%clk 0:01:19]} 19. Rxf8 {[%clk 0:00:48]}  Rxf8 {[%clk 0:01:20]} 20. d4 {[%clk 0:00:47]}  Ng6 {[%clk 0:01:14]} 21. dxc5 {[%clk 0:00:45]}  Bxc5+ {[%clk 0:01:14]} 22. Kh1 {[%clk 0:00:40]}  Be7 {[%clk 0:01:11]} 23. Qb3 {[%clk 0:00:29]}  Nf4 {[%clk 0:01:07]} 24. Rd1 {[%clk 0:00:24]}  Nxg2 {[%clk 0:01:02]} 25. Kxg2 {[%clk 0:00:25]}  Kb8 {[%clk 0:00:52]} 26. Kh3 {[%clk 0:00:24]}  g6 {[%clk 0:00:49]} 27. c4 {[%clk 0:00:24]}  e5 {[%clk 0:00:46]} 28. c5 {[%clk 0:00:23]}  h5 {[%clk 0:00:46]} 29. Nd6 {[%clk 0:00:17]}  Bxg4+ {[%clk 0:00:45]} 30. Kg2 {[%clk 0:00:17]}  Bf3+ {[%clk 0:00:44]} 0-1


[Site "https://www.chess.com"]

[Event "Titled Tuesday Blitz August 17 2021"]
[White "Papasimakopoulos, Alexandros"]
[Black "Donatti, Alvaro"]
[WhiteFideId "4244125"]
[BlackFideId "3000303"]
[WhiteElo "2352"]
[BlackElo "2138"]
[Result "1-0"]
[Round "02"]
[TimeControl "180+1"]
[Date "2021.08.18"]
[WhiteClock "0:00:07"]
[BlackClock "0:00:01"]

1. d4 {[%clk 0:03:00]}  Nf6 {[%clk 0:02:59]} 2. c4 {[%clk 0:02:50]}  g6 {[%clk 0:02:59]} 3. Nc3 {[%clk 0:02:49]}  d5 {[%clk 0:02:58]} 4. Nf3 {[%clk 0:02:49]}  Bg7 {[%clk 0:02:58]} 5. Qb3 {[%clk 0:02:49]}  dxc4 {[%clk 0:02:55]} 6. Qxc4 {[%clk 0:02:50]}  O-O {[%clk 0:02:55]} 7. e4 {[%clk 0:02:50]}  c6 {[%clk 0:02:49]} 8. Be2 {[%clk 0:02:47]}  Nbd7 {[%clk 0:02:48]} 9. O-O {[%clk 0:02:46]}  Nb6 {[%clk 0:02:48]} 10. Qd3 {[%clk 0:02:46]}  Bg4 {[%clk 0:02:47]} 11. Rd1 {[%clk 0:02:37]}  Qc7 {[%clk 0:02:39]} 12. h3 {[%clk 0:02:28]}  Be6 {[%clk 0:02:38]} 13. Bg5 {[%clk 0:02:25]}  Bc4 {[%clk 0:02:33]} 14. Qe3 {[%clk 0:02:23]}  Bxe2 {[%clk 0:02:32]} 15. Bf4 {[%clk 0:02:16]}  Nc4 {[%clk 0:02:06]} 16. Qxe2 {[%clk 0:01:56]}  Qxf4 {[%clk 0:02:04]} 17. g3 {[%clk 0:01:49]}  Qh6 {[%clk 0:01:59]} 18. Qxc4 {[%clk 0:01:47]}  Qxh3 {[%clk 0:01:58]} 19. Qb4 {[%clk 0:01:45]}  Qg4 {[%clk 0:01:45]} 20. Ne5 {[%clk 0:01:37]}  Qe6 {[%clk 0:01:30]} 21. Qxb7 {[%clk 0:01:36]}  Rab8 {[%clk 0:01:27]} 22. Qxc6 {[%clk 0:01:34]}  Rxb2 {[%clk 0:01:25]} 23. Qxe6 {[%clk 0:01:28]}  fxe6 {[%clk 0:01:25]} 24. Nd3 {[%clk 0:01:29]}  Rc2 {[%clk 0:01:23]} 25. Rac1 {[%clk 0:01:28]}  Rxc1 {[%clk 0:01:21]} 26. Rxc1 {[%clk 0:01:29]}  Rd8 {[%clk 0:01:19]} 27. Nc5 {[%clk 0:01:20]}  Rxd4 {[%clk 0:01:11]} 28. Nxe6 {[%clk 0:01:15]}  Rc4 {[%clk 0:01:11]} 29. Nxg7 {[%clk 0:01:09]}  Kxg7 {[%clk 0:01:11]} 30. f3 {[%clk 0:01:10]}  Nd7 {[%clk 0:01:08]} 31. Kf2 {[%clk 0:01:03]}  Nc5 {[%clk 0:01:03]} 32. Ke3 {[%clk 0:01:03]}  e5 {[%clk 0:01:01]} 33. Kd2 {[%clk 0:00:38]}  Ne6 {[%clk 0:00:54]} 34. Rb1 {[%clk 0:00:34]}  Nd4 {[%clk 0:00:49]} 35. Rb7+ {[%clk 0:00:33]}  Kh6 {[%clk 0:00:49]} 36. f4 {[%clk 0:00:33]}  a5 {[%clk 0:00:42]} 37. Kd3 {[%clk 0:00:26]}  Rb4 {[%clk 0:00:39]} 38. Rxb4 {[%clk 0:00:21]}  axb4 {[%clk 0:00:39]} 39. Nd5 {[%clk 0:00:22]}  Ne6 {[%clk 0:00:21]} 40. fxe5 {[%clk 0:00:19]}  Kg5 {[%clk 0:00:20]} 41. Nxb4 {[%clk 0:00:19]}  h5 {[%clk 0:00:20]} 42. a4 {[%clk 0:00:19]}  Kg4 {[%clk 0:00:19]} 43. a5 {[%clk 0:00:19]}  Kxg3 {[%clk 0:00:19]} 44. Kc4 {[%clk 0:00:19]}  h4 {[%clk 0:00:18]} 45. a6 {[%clk 0:00:19]}  h3 {[%clk 0:00:17]} 46. Nd5 {[%clk 0:00:19]}  h2 {[%clk 0:00:10]} 47. a7 {[%clk 0:00:19]}  h1=Q {[%clk 0:00:10]} 48. a8=Q {[%clk 0:00:19]}  Qc1+ {[%clk 0:00:09]} 49. Kb5 {[%clk 0:00:12]}  Qc5+ {[%clk 0:00:09]} 50. Ka4 {[%clk 0:00:09]}  Qc4+ {[%clk 0:00:08]} 51. Ka3 {[%clk 0:00:09]}  Qc5+ {[%clk 0:00:07]} 52. Nb4 {[%clk 0:00:08]}  Qc3+ {[%clk 0:00:07]} 53. Ka4 {[%clk 0:00:07]}  Qa1+ {[%clk 0:00:03]} 54. Kb5 {[%clk 0:00:07]}  Qxa8 {[%clk 0:00:02]} 55. Nd5 {[%clk 0:00:08]}  Qb7+ {[%clk 0:00:02]} 56. Kc4 {[%clk 0:00:09]}  Qc6+ {[%clk 0:00:02]} 57. Kd3 {[%clk 0:00:09]}  Qc5 {[%clk 0:00:02]} 58. Ne3 {[%clk 0:00:06]}  Qa3+ {[%clk 0:00:02]} 59. Ke2 {[%clk 0:00:07]}  Qb2+ {[%clk 0:00:01]} 60. Kd3 {[%clk 0:00:07]}  Ng5 {[%clk 0:00:01]} 61. Nc4 {[%clk 0:00:07]}  Qb3+ {[%clk 0:00:01]} 62. Kd4 {[%clk 0:00:08]}  Qd1+ {[%clk 0:00:01]} 63. Kc5 {[%clk 0:00:07]}  Qe2 {[%clk 0:00:01]} 64. e6 {[%clk 0:00:07]} 1-0


[Site "https://www.chess.com"]

[Event "Titled Tuesday Blitz August 17 2021"]
[White "Paravyan, David"]
[Black "Martinez Reyes, Pedro Ramon"]
[WhiteFideId "4194985"]
[BlackFideId "3901807"]
[WhiteElo "2562"]
[BlackElo "2398"]
[Result "1-0"]
[Round "02"]
[TimeControl "180+1"]
[Date "2021.08.17"]
[WhiteClock "0:02:13"]
[BlackClock "0:01:14"]

1. e4 {[%clk 0:03:00]}  e6 {[%clk 0:02:59]} 2. d4 {[%clk 0:02:59]}  d5 {[%clk 0:03:00]} 3. exd5 {[%clk 0:03:00]}  exd5 {[%clk 0:02:59]} 4. Nf3 {[%clk 0:03:01]}  Nf6 {[%clk 0:02:59]} 5. Bd3 {[%clk 0:03:01]}  Be7 {[%clk 0:02:59]} 6. O-O {[%clk 0:03:01]}  Bg4 {[%clk 0:02:59]} 7. h3 {[%clk 0:03:01]}  Bh5 {[%clk 0:02:59]} 8. Bf4 {[%clk 0:03:00]}  O-O {[%clk 0:02:58]} 9. Re1 {[%clk 0:03:00]}  Nbd7 {[%clk 0:02:52]} 10. Nbd2 {[%clk 0:02:59]}  c6 {[%clk 0:02:51]} 11. c3 {[%clk 0:03:00]}  Re8 {[%clk 0:02:49]} 12. Qc2 {[%clk 0:02:59]}  Bg6 {[%clk 0:02:48]} 13. Re2 {[%clk 0:02:59]}  Nf8 {[%clk 0:02:45]} 14. Rae1 {[%clk 0:02:59]}  Bd6 {[%clk 0:02:41]} 15. Rxe8 {[%clk 0:02:57]}  Nxe8 {[%clk 0:02:37]} 16. Rxe8 {[%clk 0:02:50]}  Qxe8 {[%clk 0:02:36]} 17. Bxd6 {[%clk 0:02:51]}  Bxd3 {[%clk 0:02:31]} 18. Qxd3 {[%clk 0:02:51]}  Ng6 {[%clk 0:02:32]} 19. Bg3 {[%clk 0:02:37]}  Qd7 {[%clk 0:02:28]} 20. Ne5 {[%clk 0:02:37]}  Nxe5 {[%clk 0:02:28]} 21. dxe5 {[%clk 0:02:38]}  c5 {[%clk 0:02:25]} 22. f4 {[%clk 0:02:35]}  g6 {[%clk 0:02:18]} 23. Bf2 {[%clk 0:02:35]}  b6 {[%clk 0:02:12]} 24. Nf3 {[%clk 0:02:35]}  Rd8 {[%clk 0:02:10]} 25. g4 {[%clk 0:02:35]}  Qa4 {[%clk 0:02:10]} 26. Qd2 {[%clk 0:02:27]}  Qxa2 {[%clk 0:01:57]} 27. f5 {[%clk 0:02:26]}  Qb1+ {[%clk 0:01:57]} 28. Kg2 {[%clk 0:02:24]}  Re8 {[%clk 0:01:39]} 29. f6 {[%clk 0:02:23]}  g5 {[%clk 0:01:31]} 30. Qxg5+ {[%clk 0:02:17]}  Qg6 {[%clk 0:01:31]} 31. Qf4 {[%clk 0:02:16]}  Qe4 {[%clk 0:01:27]} 32. Kg3 {[%clk 0:02:16]}  Qxf4+ {[%clk 0:01:19]} 33. Kxf4 {[%clk 0:02:17]}  a5 {[%clk 0:01:19]} 34. Nh4 {[%clk 0:02:12]}  a4 {[%clk 0:01:17]} 35. Nf5 {[%clk 0:02:12]}  Ra8 {[%clk 0:01:16]} 36. Ne7+ {[%clk 0:02:12]}  Kf8 {[%clk 0:01:16]} 37. Nxd5 {[%clk 0:02:13]}  Ra5 {[%clk 0:01:15]} 38. Nxb6 {[%clk 0:02:13]}  Rb5 {[%clk 0:01:15]} 39. Nxa4 {[%clk 0:02:13]}  Rb4+ {[%clk 0:01:14]} 40. cxb4 {[%clk 0:02:13]} 1-0


[Site "https://www.chess.com"]

[Event "Titled Tuesday Blitz August 17 2021"]
[White "Pastar, Slaven"]
[Black "Castellanos Rodriguez, Renier"]
[WhiteFideId "14402718"]
[BlackFideId "3404650"]
[WhiteElo "2150"]
[BlackElo "2612"]
[Result "1-0"]
[Round "02"]
[TimeControl "180+1"]
[Date "2021.08.17"]
[WhiteClock "0:00:06"]
[BlackClock "0:00:31"]

1. d4 {[%clk 0:03:00]}  e6 {[%clk 0:03:00]} 2. Nf3 {[%clk 0:02:57]}  f5 {[%clk 0:02:57]} 3. g3 {[%clk 0:02:54]}  Nf6 {[%clk 0:02:55]} 4. Bg2 {[%clk 0:02:55]}  d5 {[%clk 0:02:51]} 5. O-O {[%clk 0:02:55]}  Bd6 {[%clk 0:02:51]} 6. b3 {[%clk 0:02:55]}  Qe7 {[%clk 0:02:51]} 7. a4 {[%clk 0:02:53]}  a5 {[%clk 0:02:48]} 8. Ba3 {[%clk 0:02:52]}  O-O {[%clk 0:02:48]} 9. Bxd6 {[%clk 0:02:48]}  cxd6 {[%clk 0:02:43]} 10. Nc3 {[%clk 0:02:44]}  b6 {[%clk 0:02:43]} 11. Nb5 {[%clk 0:02:38]}  Ba6 {[%clk 0:02:43]} 12. c4 {[%clk 0:02:37]}  Nc6 {[%clk 0:02:43]} 13. Rc1 {[%clk 0:02:09]}  Nb4 {[%clk 0:02:41]} 14. Ng5 {[%clk 0:01:50]}  Rac8 {[%clk 0:02:37]} 15. Qd2 {[%clk 0:01:42]}  h6 {[%clk 0:02:35]} 16. Nh3 {[%clk 0:01:37]}  g5 {[%clk 0:02:32]} 17. Kh1 {[%clk 0:01:35]}  Kg7 {[%clk 0:02:18]} 18. f3 {[%clk 0:00:59]}  dxc4 {[%clk 0:01:45]} 19. bxc4 {[%clk 0:00:54]}  d5 {[%clk 0:01:46]} 20. cxd5 {[%clk 0:00:49]}  Nbxd5 {[%clk 0:01:41]} 21. e4 {[%clk 0:00:47]}  Qb4 {[%clk 0:01:31]} 22. Qxb4 {[%clk 0:00:40]}  Nxb4 {[%clk 0:01:30]} 23. exf5 {[%clk 0:00:35]}  exf5 {[%clk 0:01:26]} 24. Nd6 {[%clk 0:00:28]}  Bxf1 {[%clk 0:01:14]} 25. Rxc8 {[%clk 0:00:22]}  Rxc8 {[%clk 0:01:13]} 26. Nxc8 {[%clk 0:00:22]}  Bxg2+ {[%clk 0:01:09]} 27. Kxg2 {[%clk 0:00:23]}  Nfd5 {[%clk 0:01:09]} 28. f4 {[%clk 0:00:20]}  Kf6 {[%clk 0:01:05]} 29. fxg5+ {[%clk 0:00:19]}  hxg5 {[%clk 0:01:06]} 30. Nf2 {[%clk 0:00:20]}  Nc2 {[%clk 0:01:03]} 31. h4 {[%clk 0:00:18]}  Nxd4 {[%clk 0:01:02]} 32. Nd3 {[%clk 0:00:17]}  gxh4 {[%clk 0:00:55]} 33. gxh4 {[%clk 0:00:18]}  Ne6 {[%clk 0:00:52]} 34. Kg3 {[%clk 0:00:16]}  Nc5 {[%clk 0:00:52]} 35. Nb2 {[%clk 0:00:15]}  Ne4+ {[%clk 0:00:49]} 36. Kf3 {[%clk 0:00:14]}  Nd2+ {[%clk 0:00:48]} 37. Ke2 {[%clk 0:00:12]}  Ne4 {[%clk 0:00:46]} 38. Nc4 {[%clk 0:00:11]}  Nec3+ {[%clk 0:00:44]} 39. Kd3 {[%clk 0:00:10]}  Nxa4 {[%clk 0:00:45]} 40. Kd4 {[%clk 0:00:11]}  Ke6 {[%clk 0:00:40]} 41. h5 {[%clk 0:00:11]}  b5 {[%clk 0:00:39]} 42. h6 {[%clk 0:00:11]}  Nf6 {[%clk 0:00:37]} 43. Nxa5 {[%clk 0:00:11]}  f4 {[%clk 0:00:36]} 44. Na7 {[%clk 0:00:11]}  Nb6 {[%clk 0:00:32]} 45. Nxb5 {[%clk 0:00:10]}  Kf5 {[%clk 0:00:33]} 46. Nd6+ {[%clk 0:00:09]}  Kg4 {[%clk 0:00:33]} 47. Ne4 {[%clk 0:00:08]}  Nh7 {[%clk 0:00:32]} 48. Nc4 {[%clk 0:00:07]}  Nd7 {[%clk 0:00:30]} 49. Ne5+ {[%clk 0:00:07]}  Nxe5 {[%clk 0:00:30]} 50. Kxe5 {[%clk 0:00:08]}  f3 {[%clk 0:00:31]} 51. Kd4 {[%clk 0:00:07]}  Kf4 {[%clk 0:00:31]} 52. Nf2 {[%clk 0:00:07]}  Ng5 {[%clk 0:00:31]} 53. Kd3 {[%clk 0:00:07]}  Kg3 {[%clk 0:00:31]} 54. Ke3 {[%clk 0:00:07]}  Kg2 {[%clk 0:00:31]} 55. Ne4 {[%clk 0:00:07]}  Nxe4 {[%clk 0:00:31]} 56. h7 {[%clk 0:00:07]}  f2 {[%clk 0:00:31]} 57. h8=Q {[%clk 0:00:08]}  Ng3 {[%clk 0:00:29]} 58. Qb2 {[%clk 0:00:06]}  Nh1 {[%clk 0:00:29]} 59. Qe2 {[%clk 0:00:06]}  Kg1 {[%clk 0:00:29]} 60. Qg4+ {[%clk 0:00:06]}  Kh2 {[%clk 0:00:28]} 61. Qf4+ {[%clk 0:00:05]}  Kg2 {[%clk 0:00:28]} 62. Qe4+ {[%clk 0:00:04]}  Kg1 {[%clk 0:00:28]} 63. Qg6+ {[%clk 0:00:03]}  Kf1 {[%clk 0:00:28]} 64. Qh5 {[%clk 0:00:03]}  Ng3 {[%clk 0:00:28]} 65. Qh3+ {[%clk 0:00:04]}  Ke1 {[%clk 0:00:28]} 66. Qxg3 {[%clk 0:00:04]}  Kd1 {[%clk 0:00:28]} 67. Qxf2 {[%clk 0:00:05]}  Kc1 {[%clk 0:00:29]} 68. Kd3 {[%clk 0:00:05]}  Kb1 {[%clk 0:00:30]} 69. Kc3 {[%clk 0:00:05]}  Ka1 {[%clk 0:00:31]} 70. Qb2# {[%clk 0:00:06]} 1-0


[Site "https://www.chess.com"]

[Event "Titled Tuesday Blitz August 17 2021"]
[White "Perez Rodriguez, Luis Manuel"]
[Black "Fier, Alexandr"]
[WhiteFideId "3503364"]
[BlackFideId "2107139"]
[WhiteElo "2429"]
[BlackElo "2569"]
[Result "0-1"]
[Round "02"]
[TimeControl "180+1"]
[Date "2021.08.17"]
[WhiteClock "0:00:15"]
[BlackClock "0:01:10"]

1. e4 {[%clk 0:03:00]}  c5 {[%clk 0:02:59]} 2. Nf3 {[%clk 0:03:01]}  e6 {[%clk 0:02:57]} 3. d4 {[%clk 0:02:59]}  cxd4 {[%clk 0:02:54]} 4. Nxd4 {[%clk 0:03:00]}  Nf6 {[%clk 0:02:54]} 5. Nc3 {[%clk 0:02:59]}  d6 {[%clk 0:02:54]} 6. g4 {[%clk 0:02:59]}  h6 {[%clk 0:02:53]} 7. h4 {[%clk 0:02:58]}  Nc6 {[%clk 0:02:51]} 8. Rg1 {[%clk 0:02:58]}  h5 {[%clk 0:02:46]} 9. gxh5 {[%clk 0:02:57]}  Nxh5 {[%clk 0:02:42]} 10. Bg5 {[%clk 0:02:57]}  Qb6 {[%clk 0:02:41]} 11. Nb3 {[%clk 0:02:51]}  Bd7 {[%clk 0:02:39]} 12. Be2 {[%clk 0:02:41]}  Nf6 {[%clk 0:02:38]} 13. Qd2 {[%clk 0:02:28]}  O-O-O {[%clk 0:02:38]} 14. h5 {[%clk 0:02:23]}  Be7 {[%clk 0:02:33]} 15. Be3 {[%clk 0:02:12]}  Qc7 {[%clk 0:02:30]} 16. Rxg7 {[%clk 0:02:06]}  Nxh5 {[%clk 0:02:27]} 17. Rxf7 {[%clk 0:02:06]}  Be8 {[%clk 0:02:27]} 18. Rf3 {[%clk 0:01:57]}  Nf6 {[%clk 0:02:19]} 19. O-O-O {[%clk 0:01:52]}  Bg6 {[%clk 0:01:59]} 20. Nb5 {[%clk 0:01:09]}  Nxe4 {[%clk 0:01:55]} 21. Nxc7 {[%clk 0:00:51]}  Nxd2 {[%clk 0:01:54]} 22. Nxe6 {[%clk 0:00:51]}  Nxb3+ {[%clk 0:01:46]} 23. axb3 {[%clk 0:00:52]}  Rde8 {[%clk 0:01:47]} 24. Nf4 {[%clk 0:00:46]}  Be4 {[%clk 0:01:45]} 25. Rg3 {[%clk 0:00:45]}  Ne5 {[%clk 0:01:34]} 26. Nd5 {[%clk 0:00:42]}  Bh4 {[%clk 0:01:33]} 27. Rg7 {[%clk 0:00:40]}  Kb8 {[%clk 0:01:32]} 28. c4 {[%clk 0:00:26]}  Nc6 {[%clk 0:01:30]} 29. Rdg1 {[%clk 0:00:23]}  Rhf8 {[%clk 0:01:29]} 30. Rd7 {[%clk 0:00:21]}  Bxf2 {[%clk 0:01:26]} 31. Bxf2 {[%clk 0:00:19]}  Rxf2 {[%clk 0:01:24]} 32. Rgg7 {[%clk 0:00:19]}  Rxe2 {[%clk 0:01:10]} 33. Rxb7+ {[%clk 0:00:18]}  Ka8 {[%clk 0:01:10]} 34. Rbf7 {[%clk 0:00:15]}  Bxd5 {[%clk 0:01:10]} 0-1


[Site "https://www.chess.com"]

[Event "Titled Tuesday Blitz August 17 2021"]
[White "Pert, Richard G"]
[Black "Demchenko, Anton"]
[WhiteFideId "404748"]
[BlackFideId "4160258"]
[WhiteElo "2441"]
[BlackElo "2583"]
[Result "1-0"]
[Round "02"]
[TimeControl "180+1"]
[Date "2021.08.17"]
[WhiteClock "0:00:08"]
[BlackClock "0:00:01"]

1. d4 {[%clk 0:03:00]}  Nf6 {[%clk 0:02:57]} 2. c4 {[%clk 0:03:00]}  e6 {[%clk 0:02:57]} 3. Nf3 {[%clk 0:02:59]}  Bb4+ {[%clk 0:02:56]} 4. Bd2 {[%clk 0:02:54]}  Qe7 {[%clk 0:02:56]} 5. g3 {[%clk 0:02:51]}  Nc6 {[%clk 0:02:54]} 6. Bg2 {[%clk 0:02:51]}  Bxd2+ {[%clk 0:02:53]} 7. Qxd2 {[%clk 0:02:48]}  Ne4 {[%clk 0:02:52]} 8. Qc2 {[%clk 0:02:47]}  Qb4+ {[%clk 0:02:52]} 9. Nbd2 {[%clk 0:02:42]}  Nxd2 {[%clk 0:02:50]} 10. Qxd2 {[%clk 0:02:42]}  Qxc4 {[%clk 0:02:51]} 11. O-O {[%clk 0:02:41]}  Qb4 {[%clk 0:02:43]} 12. Qg5 {[%clk 0:02:40]}  O-O {[%clk 0:02:43]} 13. Rfd1 {[%clk 0:02:31]}  d5 {[%clk 0:02:34]} 14. Rac1 {[%clk 0:02:25]}  Qxb2 {[%clk 0:02:31]} 15. h4 {[%clk 0:02:10]}  Qxe2 {[%clk 0:02:28]} 16. h5 {[%clk 0:02:08]}  h6 {[%clk 0:02:21]} 17. Qf4 {[%clk 0:02:08]}  Qxa2 {[%clk 0:02:18]} 18. Qxc7 {[%clk 0:02:03]}  Qa3 {[%clk 0:01:34]} 19. Rc5 {[%clk 0:01:58]}  a5 {[%clk 0:01:20]} 20. Qd6 {[%clk 0:01:56]}  Rd8 {[%clk 0:01:13]} 21. Qc7 {[%clk 0:01:48]}  Rd7 {[%clk 0:01:05]} 22. Qf4 {[%clk 0:01:33]}  Qb4 {[%clk 0:01:04]} 23. Rdc1 {[%clk 0:01:30]}  Rd8 {[%clk 0:00:52]} 24. Bf1 {[%clk 0:01:13]}  a4 {[%clk 0:00:39]} 25. Qc7 {[%clk 0:01:02]}  Re8 {[%clk 0:00:34]} 26. Bb5 {[%clk 0:00:55]}  a3 {[%clk 0:00:29]} 27. Ne5 {[%clk 0:00:48]}  Rf8 {[%clk 0:00:11]} 28. Bxc6 {[%clk 0:00:40]}  bxc6 {[%clk 0:00:04]} 29. Nxc6 {[%clk 0:00:40]}  Qb2 {[%clk 0:00:04]} 30. Ne7+ {[%clk 0:00:35]}  Kh7 {[%clk 0:00:05]} 31. R5c2 {[%clk 0:00:24]}  Qb3 {[%clk 0:00:04]} 32. Rc3 {[%clk 0:00:18]}  Qb4 {[%clk 0:00:04]} 33. Nc6 {[%clk 0:00:18]}  Qb7 {[%clk 0:00:04]} 34. Qd6 {[%clk 0:00:17]}  Bd7 {[%clk 0:00:03]} 35. Ne5 {[%clk 0:00:17]}  Bb5 {[%clk 0:00:03]} 36. Rc7 {[%clk 0:00:15]}  Qa6 {[%clk 0:00:03]} 37. Qe7 {[%clk 0:00:14]}  Rae8 {[%clk 0:00:01]} 38. Qc5 {[%clk 0:00:09]}  a2 {[%clk 0:00:01]} 39. Nxf7 {[%clk 0:00:08]} 1-0


[Site "https://www.chess.com"]

[Event "Titled Tuesday Blitz August 17 2021"]
[White "Politov, Pavel Y."]
[Black "Dobrowolski, Piotr"]
[WhiteFideId "24110515"]
[BlackFideId "1106236"]
[WhiteElo "2090"]
[BlackElo "2296"]
[Result "1-0"]
[Round "02"]
[TimeControl "180+1"]
[Date "2021.08.18"]
[WhiteClock "0:00:16"]
[BlackClock "0:00:07"]

1. d4 {[%clk 0:03:00]}  e6 {[%clk 0:03:00]} 2. c4 {[%clk 0:03:00]}  c5 {[%clk 0:03:00]} 3. d5 {[%clk 0:03:00]}  exd5 {[%clk 0:03:00]} 4. cxd5 {[%clk 0:03:01]}  d6 {[%clk 0:03:01]} 5. Nc3 {[%clk 0:03:01]}  g6 {[%clk 0:03:02]} 6. e4 {[%clk 0:03:01]}  Bg7 {[%clk 0:03:02]} 7. Nf3 {[%clk 0:03:02]}  a6 {[%clk 0:03:00]} 8. a4 {[%clk 0:03:01]}  Bg4 {[%clk 0:03:00]} 9. Be2 {[%clk 0:03:01]}  Bxf3 {[%clk 0:02:59]} 10. Bxf3 {[%clk 0:03:01]}  Nd7 {[%clk 0:03:00]} 11. O-O {[%clk 0:03:01]}  Ne7 {[%clk 0:02:57]} 12. Be2 {[%clk 0:02:52]}  O-O {[%clk 0:02:56]} 13. Be3 {[%clk 0:02:47]}  f5 {[%clk 0:02:54]} 14. Bg5 {[%clk 0:02:38]}  f4 {[%clk 0:02:43]} 15. Bg4 {[%clk 0:02:34]}  Ne5 {[%clk 0:02:38]} 16. Be6+ {[%clk 0:02:35]}  Kh8 {[%clk 0:02:38]} 17. f3 {[%clk 0:02:25]}  h6 {[%clk 0:02:27]} 18. Bh4 {[%clk 0:02:25]}  g5 {[%clk 0:02:28]} 19. Bf2 {[%clk 0:02:24]}  N7g6 {[%clk 0:02:28]} 20. Qb3 {[%clk 0:02:06]}  Qe7 {[%clk 0:02:26]} 21. Rac1 {[%clk 0:01:57]}  Nd3 {[%clk 0:02:25]} 22. Qb6 {[%clk 0:01:53]}  Nxf2 {[%clk 0:02:24]} 23. Kxf2 {[%clk 0:01:53]}  Bd4+ {[%clk 0:02:20]} 24. Ke2 {[%clk 0:01:52]}  Ne5 {[%clk 0:02:06]} 25. Rfd1 {[%clk 0:01:14]}  Be3 {[%clk 0:02:03]} 26. Rc2 {[%clk 0:01:13]}  Rad8 {[%clk 0:01:43]} 27. a5 {[%clk 0:01:10]}  g4 {[%clk 0:01:34]} 28. fxg4 {[%clk 0:01:06]}  Qh4 {[%clk 0:01:32]} 29. Rh1 {[%clk 0:00:50]}  Bd4 {[%clk 0:00:49]} 30. Kd1 {[%clk 0:00:41]}  f3 {[%clk 0:00:49]} 31. gxf3 {[%clk 0:00:25]}  Rxf3 {[%clk 0:00:47]} 32. Kc1 {[%clk 0:00:22]}  Qe7 {[%clk 0:00:39]} 33. Kb1 {[%clk 0:00:21]}  Rdf8 {[%clk 0:00:32]} 34. h4 {[%clk 0:00:20]}  Rf1+ {[%clk 0:00:30]} 35. Rxf1 {[%clk 0:00:20]}  Rxf1+ {[%clk 0:00:30]} 36. Ka2 {[%clk 0:00:21]}  Nc4 {[%clk 0:00:25]} 37. Qb3 {[%clk 0:00:17]}  Ne3 {[%clk 0:00:23]} 38. Re2 {[%clk 0:00:17]}  Qd8 {[%clk 0:00:20]} 39. Qa4 {[%clk 0:00:16]}  Rf8 {[%clk 0:00:17]} 40. Qd7 {[%clk 0:00:16]}  Qxa5+ {[%clk 0:00:16]} 41. Qa4 {[%clk 0:00:15]}  Qxa4+ {[%clk 0:00:15]} 42. Nxa4 {[%clk 0:00:15]}  b5 {[%clk 0:00:16]} 43. Nb6 {[%clk 0:00:15]}  b4 {[%clk 0:00:17]} 44. Nd7 {[%clk 0:00:15]}  Rd8 {[%clk 0:00:16]} 45. g5 {[%clk 0:00:15]}  c4 {[%clk 0:00:17]} 46. g6 {[%clk 0:00:14]}  b3+ {[%clk 0:00:17]} 47. Ka3 {[%clk 0:00:14]}  Kg7 {[%clk 0:00:18]} 48. h5 {[%clk 0:00:14]}  Nc2+ {[%clk 0:00:18]} 49. Ka4 {[%clk 0:00:14]}  Be5 {[%clk 0:00:17]} 50. Nxe5 {[%clk 0:00:13]}  dxe5 {[%clk 0:00:16]} 51. Rf2 {[%clk 0:00:14]}  Rf8 {[%clk 0:00:15]} 52. Bf7 {[%clk 0:00:15]}  Nd4 {[%clk 0:00:14]} 53. d6 {[%clk 0:00:15]}  Rb8 {[%clk 0:00:13]} 54. d7 {[%clk 0:00:14]}  c3 {[%clk 0:00:11]} 55. bxc3 {[%clk 0:00:13]}  Nc6 {[%clk 0:00:11]} 56. Rb2 {[%clk 0:00:13]}  Rd8 {[%clk 0:00:10]} 57. Be8 {[%clk 0:00:14]}  Kf6 {[%clk 0:00:07]} 58. Rxb3 {[%clk 0:00:14]}  Kg5 {[%clk 0:00:08]} 59. Rb6 {[%clk 0:00:14]}  Ne7 {[%clk 0:00:08]} 60. g7 {[%clk 0:00:14]}  Kf4 {[%clk 0:00:07]} 61. Rg6 {[%clk 0:00:15]}  Ke3 {[%clk 0:00:07]} 62. Re6 {[%clk 0:00:15]}  Ng8 {[%clk 0:00:06]} 63. Bf7 {[%clk 0:00:15]}  Kd3 {[%clk 0:00:07]} 64. Bxg8 {[%clk 0:00:16]}  Rxg8 {[%clk 0:00:07]} 65. Re8 {[%clk 0:00:16]} 1-0


[Site "https://www.chess.com"]